[Event "Titled Tuesday Blitz November 29 Early 2022"]
[White "Aloma Vidal, Robert"]
[Black "Sailer, Mike"]
[WhiteFideId "2260409"]
[BlackFideId "2012901"]
[WhiteElo "2435"]
[BlackElo "2109"]
[Result "1-0"]
[Round "02"]
[TimeControl "180+1"]
[Date "2022.11.30"]
[WhiteClock "0:00:12"]
[BlackClock "0:00:59"]

1. e4 {[%clk 0:03:00]}  d5 {[%clk 0:03:00]} 2. exd5 {[%clk 0:03:00]}  Qxd5 {[%clk 0:03:01]} 3. Nc3 {[%clk 0:02:59]}  Qd6 {[%clk 0:03:01]} 4. d4 {[%clk 0:02:57]}  Nf6 {[%clk 0:03:02]} 5. Nf3 {[%clk 0:02:56]}  c6 {[%clk 0:03:02]} 6. g3 {[%clk 0:02:45]}  Bf5 {[%clk 0:03:02]} 7. Bg2 {[%clk 0:02:43]}  e6 {[%clk 0:03:03]} 8. O-O {[%clk 0:02:43]}  Be7 {[%clk 0:03:03]} 9. Bf4 {[%clk 0:02:42]}  Qd8 {[%clk 0:03:04]} 10. h3 {[%clk 0:02:28]}  h6 {[%clk 0:03:03]} 11. g4 {[%clk 0:02:23]}  Bh7 {[%clk 0:03:03]} 12. Ne5 {[%clk 0:02:21]}  O-O {[%clk 0:03:02]} 13. Bg3 {[%clk 0:02:19]}  Nbd7 {[%clk 0:03:02]} 14. f4 {[%clk 0:02:19]}  Nd5 {[%clk 0:03:01]} 15. Nxd5 {[%clk 0:02:18]}  cxd5 {[%clk 0:03:01]} 16. c3 {[%clk 0:02:14]}  Nf6 {[%clk 0:03:01]} 17. f5 {[%clk 0:01:51]}  exf5 {[%clk 0:02:52]} 18. gxf5 {[%clk 0:01:50]}  Ne4 {[%clk 0:02:52]} 19. Bxe4 {[%clk 0:01:49]}  dxe4 {[%clk 0:02:53]} 20. Qg4 {[%clk 0:01:47]}  Bg5 {[%clk 0:02:41]} 21. h4 {[%clk 0:01:37]}  Be3+ {[%clk 0:02:36]} 22. Kh2 {[%clk 0:01:35]}  h5 {[%clk 0:02:12]} 23. Qxh5 {[%clk 0:01:24]}  f6 {[%clk 0:01:56]} 24. Nc4 {[%clk 0:01:10]}  Bh6 {[%clk 0:01:51]} 25. Nd6 {[%clk 0:00:42]}  e3 {[%clk 0:01:39]} 26. Rg1 {[%clk 0:00:42]}  a5 {[%clk 0:01:37]} 27. Rae1 {[%clk 0:00:41]}  Ra6 {[%clk 0:01:37]} 28. Nc4 {[%clk 0:00:33]}  Re8 {[%clk 0:01:37]} 29. Rg2 {[%clk 0:00:28]}  b5 {[%clk 0:01:30]} 30. Na3 {[%clk 0:00:27]}  b4 {[%clk 0:01:29]} 31. Nc2 {[%clk 0:00:25]}  bxc3 {[%clk 0:01:29]} 32. bxc3 {[%clk 0:00:26]}  Rc6 {[%clk 0:01:24]} 33. Ree2 {[%clk 0:00:12]}  Rxc3 {[%clk 0:01:23]} 34. Be1 {[%clk 0:00:13]}  Qd6+ {[%clk 0:01:12]} 35. Kg1 {[%clk 0:00:13]}  Rd3 {[%clk 0:01:04]} 36. Qxe8+ {[%clk 0:00:12]}  Qf8 {[%clk 0:00:59]} 37. Qxf8+ {[%clk 0:00:12]}  Kxf8 {[%clk 0:01:00]} 38. Bxa5 {[%clk 0:00:12]}  Rd1+ {[%clk 0:00:58]} 39. Re1 {[%clk 0:00:12]}  Bxf5 {[%clk 0:00:59]} 40. Rxd1 {[%clk 0:00:12]} 1-0


[Site "https://www.chess.com"]

[Event "Titled Tuesday Blitz November 29 Early 2022"]
[White "Andreev, Konstantin"]
[Black "Zaichenko, Daria"]
[WhiteFideId "24239305"]
[BlackFideId "4197453"]
[WhiteElo "2106"]
[BlackElo "2039"]
[Result "0-1"]
[Round "02"]
[TimeControl "180+1"]
[Date "2022.11.30"]
[WhiteClock "0:00:04"]
[BlackClock "0:00:13"]

1. e4 {[%clk 0:03:00]}  c5 {[%clk 0:02:59]} 2. Nf3 {[%clk 0:03:00]}  Nc6 {[%clk 0:02:59]} 3. Nc3 {[%clk 0:02:58]}  g6 {[%clk 0:02:55]} 4. d4 {[%clk 0:02:54]}  cxd4 {[%clk 0:02:51]} 5. Nxd4 {[%clk 0:02:55]}  Bg7 {[%clk 0:02:51]} 6. Be3 {[%clk 0:02:55]}  e5 {[%clk 0:02:48]} 7. Ndb5 {[%clk 0:02:51]}  Nf6 {[%clk 0:02:36]} 8. Nd5 {[%clk 0:02:39]}  O-O {[%clk 0:02:17]} 9. Bc5 {[%clk 0:02:17]}  Re8 {[%clk 0:02:13]} 10. Nbc7 {[%clk 0:02:13]}  Nxd5 {[%clk 0:02:12]} 11. Nxd5 {[%clk 0:01:49]}  Qa5+ {[%clk 0:02:10]} 12. b4 {[%clk 0:01:48]}  Qa3 {[%clk 0:02:09]} 13. Bd3 {[%clk 0:01:41]}  b6 {[%clk 0:02:05]} 14. Bd6 {[%clk 0:01:14]}  Re6 {[%clk 0:02:03]} 15. Nc7 {[%clk 0:01:04]}  Rxd6 {[%clk 0:01:59]} 16. Nxa8 {[%clk 0:01:00]}  Qc3+ {[%clk 0:01:50]} 17. Kf1 {[%clk 0:00:59]}  Nxb4 {[%clk 0:01:48]} 18. g3 {[%clk 0:00:57]}  Nxd3 {[%clk 0:01:45]} 19. cxd3 {[%clk 0:00:56]}  Rxd3 {[%clk 0:01:38]} 20. Qc1 {[%clk 0:00:56]}  Bb7 {[%clk 0:01:30]} 21. Nc7 {[%clk 0:00:39]}  Bxe4 {[%clk 0:01:29]} 22. Rg1 {[%clk 0:00:37]}  Bc6 {[%clk 0:01:16]} 23. Qxc3 {[%clk 0:00:31]}  Rxc3 {[%clk 0:01:16]} 24. Ke2 {[%clk 0:00:31]}  e4 {[%clk 0:01:08]} 25. Rgc1 {[%clk 0:00:26]}  Ra3 {[%clk 0:01:03]} 26. Rab1 {[%clk 0:00:24]}  Rxa2+ {[%clk 0:01:00]} 27. Ke1 {[%clk 0:00:14]}  Bh6 {[%clk 0:00:54]} 28. Rd1 {[%clk 0:00:13]}  Ba4 {[%clk 0:00:41]} 29. Ra1 {[%clk 0:00:12]}  Rxa1 {[%clk 0:00:27]} 30. Rxa1 {[%clk 0:00:12]}  b5 {[%clk 0:00:27]} 31. Nd5 {[%clk 0:00:11]}  Bg7 {[%clk 0:00:26]} 32. Ra3 {[%clk 0:00:11]}  a5 {[%clk 0:00:24]} 33. Ke2 {[%clk 0:00:10]}  f5 {[%clk 0:00:21]} 34. Nc3 {[%clk 0:00:10]}  Bc2 {[%clk 0:00:20]} 35. Rxa5 {[%clk 0:00:08]}  Bxc3 {[%clk 0:00:18]} 36. Ra8+ {[%clk 0:00:08]}  Kg7 {[%clk 0:00:18]} 37. Rc8 {[%clk 0:00:08]}  Bd3+ {[%clk 0:00:17]} 38. Ke3 {[%clk 0:00:08]}  b4 {[%clk 0:00:18]} 39. Rb8 {[%clk 0:00:07]}  d5 {[%clk 0:00:18]} 40. f3 {[%clk 0:00:05]}  d4+ {[%clk 0:00:17]} 41. Kf2 {[%clk 0:00:06]}  e3+ {[%clk 0:00:18]} 42. Kg2 {[%clk 0:00:07]}  e2 {[%clk 0:00:18]} 43. Rb7+ {[%clk 0:00:07]}  Kh6 {[%clk 0:00:17]} 44. g4 {[%clk 0:00:07]}  e1=Q {[%clk 0:00:15]} 45. h4 {[%clk 0:00:08]}  fxg4 {[%clk 0:00:15]} 46. fxg4 {[%clk 0:00:07]}  Qxh4 {[%clk 0:00:15]} 47. Rb6 {[%clk 0:00:06]}  Qxg4+ {[%clk 0:00:15]} 48. Kh2 {[%clk 0:00:06]}  Bf1 {[%clk 0:00:13]} 49. Rxg6+ {[%clk 0:00:04]}  Kxg6 {[%clk 0:00:13]} 0-1


[Site "https://www.chess.com"]

[Event "Titled Tuesday Blitz November 29 Early 2022"]
[White "Andreikin, Dmitry"]
[Black "Taboas Rodriguez, Daniel"]
[WhiteFideId "4158814"]
[BlackFideId "2208466"]
[WhiteElo "2736"]
[BlackElo "2329"]
[Result "1-0"]
[Round "02"]
[TimeControl "180+1"]
[Date "2022.11.30"]
[WhiteClock "0:01:56"]
[BlackClock "0:00:44"]

1. e4 {[%clk 0:03:00]}  e5 {[%clk 0:03:00]} 2. Nf3 {[%clk 0:03:00]}  Nc6 {[%clk 0:03:00]} 3. g3 {[%clk 0:02:58]}  Nf6 {[%clk 0:02:59]} 4. d3 {[%clk 0:02:59]}  Bc5 {[%clk 0:02:59]} 5. Bg2 {[%clk 0:02:58]}  O-O {[%clk 0:03:00]} 6. O-O {[%clk 0:02:58]}  d6 {[%clk 0:03:00]} 7. c3 {[%clk 0:02:56]}  Bb6 {[%clk 0:02:58]} 8. Nbd2 {[%clk 0:02:53]}  a6 {[%clk 0:02:54]} 9. Nc4 {[%clk 0:02:51]}  Ba7 {[%clk 0:02:54]} 10. Bg5 {[%clk 0:02:51]}  h6 {[%clk 0:02:54]} 11. Bh4 {[%clk 0:02:51]}  Be6 {[%clk 0:02:52]} 12. Ne3 {[%clk 0:02:50]}  Ne7 {[%clk 0:02:42]} 13. Bxf6 {[%clk 0:02:48]}  gxf6 {[%clk 0:02:43]} 14. Nh4 {[%clk 0:02:48]}  Kh7 {[%clk 0:02:36]} 15. Qh5 {[%clk 0:02:41]}  Rg8 {[%clk 0:02:36]} 16. Nef5 {[%clk 0:02:37]}  Nxf5 {[%clk 0:02:30]} 17. Nxf5 {[%clk 0:02:37]}  Bxf5 {[%clk 0:02:13]} 18. Qxf5+ {[%clk 0:02:31]}  Rg6 {[%clk 0:02:13]} 19. Rad1 {[%clk 0:02:25]}  Qc8 {[%clk 0:02:12]} 20. Bh3 {[%clk 0:02:20]}  Qd8 {[%clk 0:02:06]} 21. Qh5 {[%clk 0:02:14]}  Kg7 {[%clk 0:02:02]} 22. Bf5 {[%clk 0:02:14]}  Rg5 {[%clk 0:02:02]} 23. Qf3 {[%clk 0:02:14]}  Kh8 {[%clk 0:01:50]} 24. h4 {[%clk 0:02:14]}  Rg8 {[%clk 0:01:47]} 25. Qh5 {[%clk 0:02:12]}  Qf8 {[%clk 0:01:47]} 26. Kh2 {[%clk 0:02:11]}  Qg7 {[%clk 0:01:46]} 27. d4 {[%clk 0:02:11]}  Raf8 {[%clk 0:01:42]} 28. b4 {[%clk 0:02:08]}  Bb6 {[%clk 0:01:28]} 29. a4 {[%clk 0:02:08]}  a5 {[%clk 0:01:29]} 30. b5 {[%clk 0:02:07]}  Ba7 {[%clk 0:01:27]} 31. Rd3 {[%clk 0:02:06]}  c5 {[%clk 0:01:13]} 32. dxe5 {[%clk 0:02:02]}  dxe5 {[%clk 0:01:10]} 33. Rd7 {[%clk 0:02:01]}  c4 {[%clk 0:01:09]} 34. g4 {[%clk 0:01:57]}  Bc5 {[%clk 0:00:56]} 35. Rxb7 {[%clk 0:01:56]}  Ba3 {[%clk 0:00:44]} 36. Rd1 {[%clk 0:01:56]} 1-0


[Site "https://www.chess.com"]

[Event "Titled Tuesday Blitz November 29 Early 2022"]
[White "Andrews, Todd"]
[Black "Gulevich, Artem"]
[WhiteFideId "2012456"]
[BlackFideId "24119580"]
[WhiteElo "2334"]
[BlackElo "2218"]
[Result "1-0"]
[Round "02"]
[TimeControl "180+1"]
[Date "2022.11.30"]
[WhiteClock "0:01:02"]
[BlackClock "0:00:22"]

1. e4 {[%clk 0:03:00]}  c5 {[%clk 0:02:59]} 2. Nf3 {[%clk 0:03:00]}  Nc6 {[%clk 0:03:00]} 3. d3 {[%clk 0:03:00]}  g6 {[%clk 0:02:59]} 4. g3 {[%clk 0:03:00]}  Bg7 {[%clk 0:03:00]} 5. Bg2 {[%clk 0:03:01]}  e5 {[%clk 0:03:00]} 6. O-O {[%clk 0:03:02]}  Nge7 {[%clk 0:03:00]} 7. Nc3 {[%clk 0:03:02]}  O-O {[%clk 0:03:00]} 8. Nd2 {[%clk 0:03:03]}  d6 {[%clk 0:02:59]} 9. Nc4 {[%clk 0:03:03]}  Be6 {[%clk 0:02:58]} 10. Nd5 {[%clk 0:03:04]}  Qd7 {[%clk 0:02:52]} 11. a4 {[%clk 0:03:04]}  f5 {[%clk 0:02:48]} 12. f4 {[%clk 0:03:02]}  Rae8 {[%clk 0:02:46]} 13. a5 {[%clk 0:02:55]}  Kh8 {[%clk 0:02:44]} 14. c3 {[%clk 0:02:54]}  Rf7 {[%clk 0:02:18]} 15. Bd2 {[%clk 0:02:53]}  Ref8 {[%clk 0:02:17]} 16. Qe2 {[%clk 0:02:46]}  Re8 {[%clk 0:02:11]} 17. fxe5 {[%clk 0:02:12]}  Nxe5 {[%clk 0:02:05]} 18. Nxe5 {[%clk 0:02:11]}  Bxe5 {[%clk 0:02:06]} 19. Nf4 {[%clk 0:02:06]}  fxe4 {[%clk 0:01:33]} 20. Nxe6 {[%clk 0:01:28]}  Qxe6 {[%clk 0:01:11]} 21. Qxe4 {[%clk 0:01:20]}  Rxf1+ {[%clk 0:01:01]} 22. Rxf1 {[%clk 0:01:19]}  d5 {[%clk 0:00:57]} 23. Qf3 {[%clk 0:01:07]}  Bg7 {[%clk 0:00:35]} 24. Re1 {[%clk 0:01:07]}  Qd7 {[%clk 0:00:34]} 25. Qf7 {[%clk 0:01:05]}  Qd6 {[%clk 0:00:22]} 26. Qxe8+ {[%clk 0:01:02]} 1-0


[Site "https://www.chess.com"]

[Event "Titled Tuesday Blitz November 29 Early 2022"]
[White "Barash, Anton"]
[Black "Nasir, Zehn"]
[WhiteFideId "30935229"]
[BlackFideId "2613239"]
[WhiteElo "2301"]
[BlackElo "1993"]
[Result "1/2-1/2"]
[Round "02"]
[TimeControl "180+1"]
[Date "2022.11.30"]
[WhiteClock "0:00:40"]
[BlackClock "0:00:04"]

1. e4 {[%clk 0:03:00]}  c6 {[%clk 0:02:57]} 2. d4 {[%clk 0:02:59]}  d5 {[%clk 0:02:57]} 3. Nc3 {[%clk 0:02:57]}  dxe4 {[%clk 0:02:58]} 4. f3 {[%clk 0:02:56]}  e5 {[%clk 0:02:38]} 5. dxe5 {[%clk 0:02:56]}  Qxd1+ {[%clk 0:02:37]} 6. Nxd1 {[%clk 0:02:56]}  exf3 {[%clk 0:02:34]} 7. Nxf3 {[%clk 0:02:57]}  Nd7 {[%clk 0:02:25]} 8. Ne3 {[%clk 0:02:45]}  Ne7 {[%clk 0:02:22]} 9. Bd2 {[%clk 0:02:44]}  Ng6 {[%clk 0:02:19]} 10. Bc3 {[%clk 0:02:44]}  Bc5 {[%clk 0:02:17]} 11. Nc4 {[%clk 0:02:40]}  O-O {[%clk 0:02:12]} 12. O-O-O {[%clk 0:02:40]}  Nb6 {[%clk 0:01:49]} 13. Nd6 {[%clk 0:02:40]}  Nd5 {[%clk 0:01:46]} 14. Bd4 {[%clk 0:02:30]}  Bxd4 {[%clk 0:01:45]} 15. Rxd4 {[%clk 0:02:30]}  b6 {[%clk 0:01:43]} 16. Nxc8 {[%clk 0:02:29]}  Raxc8 {[%clk 0:01:43]} 17. Bc4 {[%clk 0:02:29]}  Ndf4 {[%clk 0:01:38]} 18. g3 {[%clk 0:02:20]}  Ne6 {[%clk 0:01:21]} 19. Rd7 {[%clk 0:02:10]}  b5 {[%clk 0:00:56]} 20. Bb3 {[%clk 0:01:55]}  a5 {[%clk 0:00:56]} 21. a4 {[%clk 0:01:52]}  Nc5 {[%clk 0:00:55]} 22. Ra7 {[%clk 0:01:48]}  Nxb3+ {[%clk 0:00:54]} 23. cxb3 {[%clk 0:01:49]}  Ra8 {[%clk 0:00:52]} 24. Rxa8 {[%clk 0:01:48]}  Rxa8 {[%clk 0:00:52]} 25. Rd1 {[%clk 0:01:49]}  Kf8 {[%clk 0:00:50]} 26. Rd7 {[%clk 0:01:46]}  Re8 {[%clk 0:00:49]} 27. Rc7 {[%clk 0:01:30]}  Nxe5 {[%clk 0:00:41]} 28. Nxe5 {[%clk 0:01:31]}  Rxe5 {[%clk 0:00:41]} 29. Rxc6 {[%clk 0:01:31]}  Ke7 {[%clk 0:00:34]} 30. Kd2 {[%clk 0:01:22]}  g6 {[%clk 0:00:31]} 31. Ra6 {[%clk 0:01:20]}  b4 {[%clk 0:00:30]} 32. Kd3 {[%clk 0:01:19]}  h5 {[%clk 0:00:26]} 33. h4 {[%clk 0:01:11]}  Rc5 {[%clk 0:00:17]} 34. Kd4 {[%clk 0:01:07]}  Rf5 {[%clk 0:00:17]} 35. Ke3 {[%clk 0:01:06]}  f6 {[%clk 0:00:16]} 36. Ke4 {[%clk 0:01:03]}  Re5+ {[%clk 0:00:16]} 37. Kd3 {[%clk 0:01:03]}  Rf5 {[%clk 0:00:15]} 38. Ke4 {[%clk 0:01:03]}  Re5+ {[%clk 0:00:15]} 39. Kd4 {[%clk 0:01:02]}  Kf7 {[%clk 0:00:15]} 40. Ra7+ {[%clk 0:01:00]}  Ke6 {[%clk 0:00:15]} 41. Ra6+ {[%clk 0:00:54]}  Kf5 {[%clk 0:00:15]} 42. Kd3 {[%clk 0:00:54]}  g5 {[%clk 0:00:13]} 43. Kd4 {[%clk 0:00:52]}  Re4+ {[%clk 0:00:10]} 44. Kd3 {[%clk 0:00:52]}  Re5 {[%clk 0:00:10]} 45. Kd4 {[%clk 0:00:53]}  gxh4 {[%clk 0:00:09]} 46. gxh4 {[%clk 0:00:53]}  Kg6 {[%clk 0:00:05]} 47. Kd3 {[%clk 0:00:51]}  Kf5 {[%clk 0:00:06]} 48. Kd4 {[%clk 0:00:51]}  Re4+ {[%clk 0:00:06]} 49. Kd3 {[%clk 0:00:51]}  Rxh4 {[%clk 0:00:06]} 50. Rxa5+ {[%clk 0:00:52]}  Kg4 {[%clk 0:00:07]} 51. Rb5 {[%clk 0:00:49]}  Kg3 {[%clk 0:00:06]} 52. Rf5 {[%clk 0:00:49]}  Rh2 {[%clk 0:00:05]} 53. Rxf6 {[%clk 0:00:46]}  Rxb2 {[%clk 0:00:05]} 54. Kc4 {[%clk 0:00:46]}  h4 {[%clk 0:00:05]} 55. Kxb4 {[%clk 0:00:46]}  h3 {[%clk 0:00:05]} 56. Rg6+ {[%clk 0:00:45]}  Kf3 {[%clk 0:00:05]} 57. Rh6 {[%clk 0:00:45]}  Kg2 {[%clk 0:00:05]} 58. a5 {[%clk 0:00:39]}  h2 {[%clk 0:00:06]} 59. a6 {[%clk 0:00:38]}  h1=Q {[%clk 0:00:05]} 60. Rxh1 {[%clk 0:00:38]}  Kxh1 {[%clk 0:00:06]} 61. Kb5 {[%clk 0:00:36]}  Rxb3+ {[%clk 0:00:06]} 62. Kc6 {[%clk 0:00:36]}  Rc3+ {[%clk 0:00:05]} 63. Kb7 {[%clk 0:00:36]}  Rb3+ {[%clk 0:00:05]} 64. Ka8 {[%clk 0:00:37]}  Kg2 {[%clk 0:00:05]} 65. a7 {[%clk 0:00:38]}  Rh3 {[%clk 0:00:05]} 66. Kb7 {[%clk 0:00:37]}  Rh7+ {[%clk 0:00:05]} 67. Kb8 {[%clk 0:00:38]}  Kg3 {[%clk 0:00:03]} 68. a8=Q {[%clk 0:00:39]}  Rh8+ {[%clk 0:00:03]} 69. Kb7 {[%clk 0:00:39]}  Rxa8 {[%clk 0:00:04]} 70. Kxa8 {[%clk 0:00:40]} 1/2-1/2


[Site "https://www.chess.com"]

[Event "Titled Tuesday Blitz November 29 Early 2022"]
[White "Barria Zuniga, Daniel"]
[Black "Jobava, Baadur"]
[WhiteFideId "3400816"]
[BlackFideId "13601520"]
[WhiteElo "2414"]
[BlackElo "2582"]
[Result "1/2-1/2"]
[Round "02"]
[TimeControl "180+1"]
[Date "2022.11.30"]
[WhiteClock "0:00:04"]
[BlackClock "0:00:06"]

1. c4 {[%clk 0:02:50]}  e5 {[%clk 0:02:56]} 2. g3 {[%clk 0:02:49]}  c6 {[%clk 0:02:57]} 3. Bg2 {[%clk 0:02:45]}  d5 {[%clk 0:02:56]} 4. cxd5 {[%clk 0:02:46]}  cxd5 {[%clk 0:02:57]} 5. d4 {[%clk 0:02:46]}  e4 {[%clk 0:02:54]} 6. Nh3 {[%clk 0:02:44]}  Nc6 {[%clk 0:02:53]} 7. O-O {[%clk 0:02:45]}  Be7 {[%clk 0:02:45]} 8. Nc3 {[%clk 0:02:42]}  Nf6 {[%clk 0:02:45]} 9. Bg5 {[%clk 0:02:41]}  Bxh3 {[%clk 0:02:43]} 10. Bxh3 {[%clk 0:02:40]}  O-O {[%clk 0:02:42]} 11. e3 {[%clk 0:02:38]}  Ne8 {[%clk 0:02:39]} 12. Bxe7 {[%clk 0:02:35]}  Nxe7 {[%clk 0:02:40]} 13. Qb3 {[%clk 0:02:32]}  Rb8 {[%clk 0:02:39]} 14. Rfc1 {[%clk 0:02:25]}  Nc7 {[%clk 0:02:34]} 15. Nb5 {[%clk 0:02:21]}  Nxb5 {[%clk 0:02:28]} 16. Qxb5 {[%clk 0:02:22]}  Nc6 {[%clk 0:02:20]} 17. Rc5 {[%clk 0:02:20]}  Ne7 {[%clk 0:02:15]} 18. Rac1 {[%clk 0:02:17]}  g6 {[%clk 0:02:13]} 19. Rc7 {[%clk 0:02:16]}  Qd6 {[%clk 0:01:57]} 20. Rd7 {[%clk 0:02:06]}  Qf6 {[%clk 0:01:54]} 21. Rcc7 {[%clk 0:02:06]}  a6 {[%clk 0:01:46]} 22. Qc5 {[%clk 0:02:00]}  Nf5 {[%clk 0:01:43]} 23. Qxd5 {[%clk 0:01:49]}  Rbd8 {[%clk 0:01:20]} 24. Qxe4 {[%clk 0:01:28]}  b5 {[%clk 0:01:01]} 25. Bxf5 {[%clk 0:01:16]}  gxf5 {[%clk 0:01:00]} 26. Qd5 {[%clk 0:01:12]}  Rxd7 {[%clk 0:00:58]} 27. Rxd7 {[%clk 0:01:11]}  Rc8 {[%clk 0:00:57]} 28. Rd6 {[%clk 0:00:59]}  Qg5 {[%clk 0:00:51]} 29. Rxa6 {[%clk 0:00:59]}  Kg7 {[%clk 0:00:36]} 30. Ra8 {[%clk 0:00:48]}  Rxa8 {[%clk 0:00:22]} 31. Qxa8 {[%clk 0:00:47]}  Qg4 {[%clk 0:00:21]} 32. Qd5 {[%clk 0:00:46]}  Qe2 {[%clk 0:00:20]} 33. Qxf5 {[%clk 0:00:39]}  Qxb2 {[%clk 0:00:20]} 34. Qg5+ {[%clk 0:00:37]}  Kf8 {[%clk 0:00:19]} 35. Qd5 {[%clk 0:00:37]}  b4 {[%clk 0:00:17]} 36. h4 {[%clk 0:00:34]}  Qd2 {[%clk 0:00:17]} 37. Kg2 {[%clk 0:00:33]}  h6 {[%clk 0:00:16]} 38. Qd6+ {[%clk 0:00:25]}  Kg7 {[%clk 0:00:16]} 39. Qd5 {[%clk 0:00:24]}  Qc2 {[%clk 0:00:09]} 40. g4 {[%clk 0:00:19]}  Qe2 {[%clk 0:00:07]} 41. Kg3 {[%clk 0:00:14]}  Qc2 {[%clk 0:00:06]} 42. g5 {[%clk 0:00:13]}  hxg5 {[%clk 0:00:06]} 43. hxg5 {[%clk 0:00:13]}  Qb1 {[%clk 0:00:06]} 44. Qe5+ {[%clk 0:00:08]}  Kg8 {[%clk 0:00:07]} 45. Qe8+ {[%clk 0:00:07]}  Kg7 {[%clk 0:00:07]} 46. Qe5+ {[%clk 0:00:08]}  Kg8 {[%clk 0:00:08]} 47. Qd5 {[%clk 0:00:08]}  Qg1+ {[%clk 0:00:06]} 48. Qg2 {[%clk 0:00:05]}  Qb1 {[%clk 0:00:07]} 49. Qd5 {[%clk 0:00:05]}  Qg1+ {[%clk 0:00:06]} 50. Qg2 {[%clk 0:00:04]}  Qb1 {[%clk 0:00:06]} 51. Qd5 {[%clk 0:00:04]} 1/2-1/2


[Site "https://www.chess.com"]

[Event "Titled Tuesday Blitz November 29 Early 2022"]
[White "Berezin, Viktor"]
[Black "Moskvin, Anatoly"]
[WhiteFideId "14107872"]
[BlackFideId "24199990"]
[WhiteElo "2310"]
[BlackElo "2079"]
[Result "1/2-1/2"]
[Round "02"]
[TimeControl "180+1"]
[Date "2022.11.30"]
[WhiteClock "0:00:09"]
[BlackClock "0:00:17"]

1. Nf3 {[%clk 0:02:59]}  d6 {[%clk 0:02:59]} 2. g3 {[%clk 0:02:57]}  Bg4 {[%clk 0:02:58]} 3. Bg2 {[%clk 0:02:58]}  Qd7 {[%clk 0:02:59]} 4. O-O {[%clk 0:02:56]}  Bh3 {[%clk 0:02:57]} 5. c4 {[%clk 0:02:54]}  h5 {[%clk 0:02:57]} 6. Nc3 {[%clk 0:02:53]}  h4 {[%clk 0:02:46]} 7. d4 {[%clk 0:02:53]}  Nc6 {[%clk 0:02:42]} 8. e4 {[%clk 0:02:43]}  hxg3 {[%clk 0:02:13]} 9. fxg3 {[%clk 0:02:42]}  Bxg2 {[%clk 0:02:13]} 10. Kxg2 {[%clk 0:02:43]}  Qh3+ {[%clk 0:02:14]} 11. Kg1 {[%clk 0:02:43]}  Nf6 {[%clk 0:02:15]} 12. Qe2 {[%clk 0:02:35]}  Ng4 {[%clk 0:02:12]} 13. Qg2 {[%clk 0:02:30]}  Qh5 {[%clk 0:01:36]} 14. Nd5 {[%clk 0:02:14]}  O-O-O {[%clk 0:01:35]} 15. Nf4 {[%clk 0:02:14]}  Qa5 {[%clk 0:01:18]} 16. Bd2 {[%clk 0:02:10]}  Qa6 {[%clk 0:01:15]} 17. b3 {[%clk 0:02:03]}  e5 {[%clk 0:01:15]} 18. Nd5 {[%clk 0:01:58]}  exd4 {[%clk 0:01:06]} 19. h3 {[%clk 0:01:56]}  Nge5 {[%clk 0:01:07]} 20. Ng5 {[%clk 0:01:52]}  f6 {[%clk 0:01:02]} 21. Ne6 {[%clk 0:01:52]}  Rd7 {[%clk 0:01:01]} 22. Bf4 {[%clk 0:01:27]}  Nd8 {[%clk 0:00:56]} 23. Nxd4 {[%clk 0:01:24]}  c6 {[%clk 0:00:52]} 24. Nc3 {[%clk 0:01:22]}  d5 {[%clk 0:00:25]} 25. exd5 {[%clk 0:01:12]}  Bc5 {[%clk 0:00:25]} 26. Rad1 {[%clk 0:01:11]}  Nxc4 {[%clk 0:00:12]} 27. Ne4 {[%clk 0:01:06]}  Bxd4+ {[%clk 0:00:11]} 28. Rxd4 {[%clk 0:01:07]}  Ne5 {[%clk 0:00:11]} 29. Rfd1 {[%clk 0:01:02]}  Qb6 {[%clk 0:00:10]} 30. Be3 {[%clk 0:00:59]}  Rxd5 {[%clk 0:00:10]} 31. Nc3 {[%clk 0:00:50]}  Rxd4 {[%clk 0:00:10]} 32. Rxd4 {[%clk 0:00:49]}  Qa5 {[%clk 0:00:11]} 33. Bd2 {[%clk 0:00:32]}  Ne6 {[%clk 0:00:10]} 34. Re4 {[%clk 0:00:23]}  Qc5+ {[%clk 0:00:11]} 35. Kh2 {[%clk 0:00:21]}  Nd4 {[%clk 0:00:07]} 36. Be3 {[%clk 0:00:20]}  Ndf3+ {[%clk 0:00:08]} 37. Kh1 {[%clk 0:00:20]}  Qxc3 {[%clk 0:00:08]} 38. Bg1 {[%clk 0:00:16]}  Qc1 {[%clk 0:00:08]} 39. a4 {[%clk 0:00:13]}  Rxh3+ {[%clk 0:00:08]} 40. Qxh3+ {[%clk 0:00:10]}  Kc7 {[%clk 0:00:06]} 41. Qg2 {[%clk 0:00:10]}  f5 {[%clk 0:00:06]} 42. Rf4 {[%clk 0:00:09]}  Qd1 {[%clk 0:00:06]} 43. Rxf5 {[%clk 0:00:09]}  Kd6 {[%clk 0:00:06]} 44. Rf4 {[%clk 0:00:09]}  Ke6 {[%clk 0:00:06]} 45. Re4 {[%clk 0:00:09]}  g5 {[%clk 0:00:07]} 46. Re2 {[%clk 0:00:07]}  Qd3 {[%clk 0:00:06]} 47. Re3 {[%clk 0:00:07]}  Qh7+ {[%clk 0:00:07]} 48. Bh2 {[%clk 0:00:07]}  Nxh2 {[%clk 0:00:04]} 49. Qxh2 {[%clk 0:00:07]}  Qxh2+ {[%clk 0:00:05]} 50. Kxh2 {[%clk 0:00:08]}  Kf5 {[%clk 0:00:04]} 51. Kg2 {[%clk 0:00:06]}  c5 {[%clk 0:00:05]} 52. Rc3 {[%clk 0:00:06]}  b6 {[%clk 0:00:06]} 53. a5 {[%clk 0:00:06]}  Ke4 {[%clk 0:00:05]} 54. Kf2 {[%clk 0:00:06]}  Kd4 {[%clk 0:00:06]} 55. Rc1 {[%clk 0:00:04]}  bxa5 {[%clk 0:00:07]} 56. Ra1 {[%clk 0:00:04]}  Nd3+ {[%clk 0:00:07]} 57. Ke2 {[%clk 0:00:03]}  c4 {[%clk 0:00:08]} 58. bxc4 {[%clk 0:00:03]}  Kxc4 {[%clk 0:00:09]} 59. Rxa5 {[%clk 0:00:03]}  g4 {[%clk 0:00:09]} 60. Rxa7 {[%clk 0:00:03]}  Ne5 {[%clk 0:00:09]} 61. Rg7 {[%clk 0:00:04]}  Kd4 {[%clk 0:00:10]} 62. Rg8 {[%clk 0:00:03]}  Ke4 {[%clk 0:00:11]} 63. Kf2 {[%clk 0:00:04]}  Kd4 {[%clk 0:00:11]} 64. Re8 {[%clk 0:00:04]}  Ke4 {[%clk 0:00:12]} 65. Rd8 {[%clk 0:00:05]}  Nd3+ {[%clk 0:00:11]} 66. Ke2 {[%clk 0:00:05]}  Ne5 {[%clk 0:00:12]} 67. Re8 {[%clk 0:00:06]}  Kd4 {[%clk 0:00:12]} 68. Rg8 {[%clk 0:00:06]}  Ke4 {[%clk 0:00:13]} 69. Kf2 {[%clk 0:00:07]}  Kd4 {[%clk 0:00:13]} 70. Kg2 {[%clk 0:00:07]}  Ke4 {[%clk 0:00:14]} 71. Rf8 {[%clk 0:00:08]}  Kd4 {[%clk 0:00:15]} 72. Rf4+ {[%clk 0:00:08]}  Ke3 {[%clk 0:00:15]} 73. Rf5 {[%clk 0:00:08]}  Ke4 {[%clk 0:00:16]} 74. Rf4+ {[%clk 0:00:08]}  Ke3 {[%clk 0:00:16]} 75. Rf5 {[%clk 0:00:08]}  Ke4 {[%clk 0:00:17]} 76. Rf4+ {[%clk 0:00:09]}  Ke3 {[%clk 0:00:17]} 1/2-1/2


[Site "https://www.chess.com"]